bitfinex/quotes_SOLUSD_20260226
["timestamp","ask_amount","ask_price","bid_price","bid_amount"]
[1772115138662,1.76079307,88.107,88.055,0.06969099]
[1772115138867,1.76079307,88.099,88.06,9.548532]
[1772115139282,56.74449431,88.115,88.06,9.548532]
[1772115139283,1.76079307,88.097,88.06,9.548532]
[1772115139461,1.76079307,88.097,88.07,9.548532]
[1772115140978,1.76079307,88.097,88.08,9.548532]
[1772115141968,1.76079307,88.097,88.073,11.35410663]
[1772115142289,11.35125317,88.096,88.07,9.548532]
[1772115142871,1.76079307,88.095,88.06,9.548532]
[1772115143074,1.76079307,88.089,88.05,9.548532]
[1772115143277,1.76079307,88.079,88.044,0.0788071]
[1772115143585,1.76079307,88.077,88.05,9.548532]
[1772115143964,1.76079307,88.077,88.045,11.35777025]
[1772115144171,1.76079307,88.077,88.04,9.748532]
[1772115144689,1.76079307,88.077,88.05,9.548532]
[1772115145074,1.76079307,88.077,88.041,11.3583444]
[1772115145265,1.76079307,88.077,88.04,9.748532]
[1772115145672,1.76079307,88.075,88.041,11.3583444]
[1772115146691,1.76079307,88.075,88.04,9.748532]
[1772115146886,1.76079307,88.075,88.04,0.2]
[1772115147092,1.76079307,88.075,88.04,9.748532]
[1772115147785,11.3540886,88.074,88.04,9.748532]
[1772115147972,1.7864552,88.073,88.04,9.748532]
[1772115149272,1.7864552,88.069,88.04,9.748532]
[1772115149793,1.7864552,88.069,88.03,9.548532]
[1772115150090,1.7864552,88.067,88.03,9.548532]
[1772115151884,1.7864552,88.065,88.031,11.35963467]
[1772115152392,1.7864552,88.065,88.04,9.548532]
[1772115152579,1.7864552,88.065,88.031,11.35963467]
[1772115152580,1.7864552,88.073,88.05,9.548532]
[1772115152783,1.7864552,88.073,88.04,9.548532]
[1772115152976,1.7864552,88.069,88.031,11.35963467]
[1772115153388,1.7864552,88.069,88.03,9.548532]
[1772115153583,1.7864552,88.059,88.03,9.548532]
[1772115154181,1.7864552,88.08,88.05,9.548532]
[1772115155500,1.7864552,88.078,88.05,9.548532]
[1772115155679,1.7864552,88.078,88.041,0.30568631]
[1772115155881,1.7864552,88.078,88.04,9.548532]
[1772115156290,1.7864552,88.069,88.03,9.548532]
[1772115157084,1.7864552,88.069,88.04,9.548532]
[1772115157284,1.7864552,88.069,88.032,0.31097279]
[1772115157285,1.81523564,88.1,88.052,0.31269462]
[1772115157489,1.81523564,88.078,88.04,9.548532]
[1772115159408,1.81523564,88.059,88.03,3.57094684]
[1772115159984,1.81523564,88.059,88.02,3.57094684]
[1772115160386,1.81523564,88.059,88.018,11.36126067]
[1772115160387,1.81523564,88.059,88.03,3.57094684]
[1772115161004,1.81523564,88.059,88.022,0.31774237]
[1772115161201,1.81523564,88.059,88.03,3.57094684]
[1772115161405,11.35512002,88.066,88.04,3.57094684]
[1772115161794,1.81523564,88.065,88.04,3.57094684]
[1772115161994,1.81523564,88.065,88.032,0.31938645]
[1772115162690,1.81523564,88.065,88.03,3.57094684]
[1772115163494,1.81523564,88.063,88.03,3.89356502]
[1772115164329,1.81523564,88.063,88.031,0.32420625]
[1772115164906,1.81523564,88.061,88.033,0.32420625]
[1772115165286,11.35506199,88.067,88.04,3.57094684]
[1772115165486,1.81523564,88.066,88.04,3.57094684]
[1772115165888,11.35506199,88.067,88.041,0.32577609]
[1772115166409,11.35450204,88.071,88.041,0.32577609]
[1772115166616,1.81523564,88.085,88.061,0.32732789]
[1772115166790,1.81523564,88.109,88.07,3.57094684]
[1772115167599,1.81523564,88.108,88.07,3.57094684]
[1772115167805,1.81523564,88.108,88.063,0.32886187]
[1772115168110,1.81523564,88.108,88.07,3.57094684]
[1772115169420,3.57094684,88.11,88.07,3.57094684]
[1772115169421,1.81523564,88.106,88.07,3.57094684]
[1772115170417,1.81523564,88.099,88.061,0.33187718]
[1772115171298,1.81523564,88.104,88.042,0.33482362]
[1772115171497,1.81523564,88.104,88.07,3.57094684]
[1772115172209,1.81523564,88.104,88.075,0.3362715]
[1772115172417,1.81523564,88.104,88.08,3.57094684]
[1772115173494,1.81523564,88.102,88.075,0.3362715]
[1772115173696,1.81523564,88.102,88.07,3.57094684]
[1772115174022,1.81523564,88.099,88.07,3.57094684]
[1772115174518,1.81523564,88.099,88.071,0.33911757]
[1772115174721,1.81523564,88.099,88.08,3.57094684]
[1772115175421,1.81523564,88.108,88.08,3.91146298]
[1772115175721,1.81523564,88.106,88.07,3.57094684]
[1772115175920,11.34983599,88.107,88.07,3.57094684]
[1772115175921,1.81523564,88.099,88.07,3.57094684]
[1772115176305,1.81523564,88.099,88.06,3.91146298]
[1772115177304,1.81523564,88.099,88.06,3.90940646]
[1772115177805,1.66079307,88.097,88.06,3.90940646]
[1772115178511,1.66079307,88.097,88.06,3.56889032]
[1772115178919,39.72848418,88.098,88.05,3.56889032]
[1772115178920,1.66079307,88.089,88.05,3.56889032]
[1772115179219,1.66079307,88.089,88.06,3.56889032]
[1772115179423,1.66079307,88.089,88.061,0.34727166]
[1772115179993,1.66079307,88.087,88.061,11.35574093]
[1772115180200,1.66079307,88.087,88.06,3.56889032]
[1772115180417,1.66079307,88.087,88.052,0.34857657]
[1772115180617,1.66079307,88.087,88.05,3.56889032]
[1772115180818,1.66079307,88.087,88.05,14.92600597]
[1772115181119,1.66079307,88.087,88.051,0.34986649]
[1772115182220,1.66079307,88.087,88.05,3.56889032]
[1772115182221,1.66079307,88.079,88.05,3.56889032]
[1772115183208,1.66079307,88.079,88.06,3.56889032]
[1772115183716,1.66079307,88.077,88.05,3.56889032]
[1772115183906,1.66079307,88.077,88.044,0.35240205]
[1772115184610,1.66079307,88.077,88.04,3.56889032]
[1772115185430,1.66079307,88.075,88.05,3.56889032]
[1772115185607,1.66079307,88.075,88.05,3.92377001]
[1772115186424,1.66079307,88.069,88.03,3.92498754]
[1772115186627,3.56889032,88.06,88.022,0.35609722]
[1772115186928,1.66079307,88.059,88.02,3.56889032]
[1772115187311,1.66079307,88.057,88.02,3.56889032]
[1772115188318,1.66079307,88.057,88.02,14.92985542]
[1772115189121,1.66079307,88.057,88.02,3.56889032]
[1772115189532,1.66079307,88.049,88.01,3.56889032]
[1772115190134,39.74743344,88.056,87.992,0.36082905]
[1772115190135,1.66079307,88.029,87.992,0.36082905]
[1772115190334,1.66079307,88.029,88.0,3.56889032]
[1772115190509,1.66079307,88.029,87.992,0.36082905]
[1772115190913,85.17307167,88.056,87.96,3.56889032]
[1772115190914,1.66079307,88.019,87.978,0.36197824]
[1772115191407,1.66079307,88.017,87.981,11.3660904]
[1772115191611,1.66079307,88.017,87.98,3.56889032]
[1772115191812,1.66079307,88.009,87.97,3.56889032]
[1772115192224,1.66079307,88.009,87.98,3.56889032]
[1772115193249,1.66079307,88.007,87.98,3.93312749]
[1772115193614,1.66079307,88.007,87.981,11.3660904]
[1772115193810,1.66079307,88.007,87.98,3.93312749]
[1772115193811,1.66079307,88.007,87.973,0.36423717]
[1772115194046,1.66079307,88.007,87.97,3.56889032]
[1772115194538,3.56889032,88.0,87.964,0.36423717]
[1772115194717,1.66079307,87.999,87.964,0.36423717]
[1772115195130,1.66079307,87.999,87.97,3.56889032]
[1772115195434,1.66079307,87.997,87.964,0.36423717]
[1772115195611,1.66079307,87.997,87.96,3.56889032]
[1772115195817,1.66079307,87.997,87.961,11.36867475]
[1772115196030,1.66079307,87.997,87.96,3.56889032]
[1772115196340,1.66079307,87.997,87.954,11.36955313]
[1772115196528,1.66079307,87.989,87.951,11.36996736]
[1772115196839,1.66079307,87.989,87.96,3.56889032]
[1772115197434,1.66079307,87.989,87.961,11.36867475]
[1772115197618,223.6910244,88.488,87.961,11.36867475]
[1772115197619,1.66079307,88.009,87.971,0.36860142]
[1772115198441,1.66079307,88.009,87.97,3.56889032]
[1772115198638,1.66079307,88.008,87.97,3.56889032]
[1772115198841,1.66079307,88.008,87.961,39.79036163]
[1772115198842,1.66079307,88.008,87.98,3.56889032]
[1772115199734,1.66079307,88.006,87.98,3.56889032]
[1772115199939,1.66079307,88.006,87.982,0.37070907]
[1772115201224,11.36250754,88.009,87.982,0.37070907]
[1772115202144,1.66079307,88.009,87.973,0.37378064]
[1772115202836,1.66079307,88.009,87.98,3.56889032]
[1772115203238,1.66079307,87.989,87.952,0.37478106]
[1772115204124,3.56889032,87.99,87.952,0.37478106]
[1772115204125,1.66079307,87.987,87.953,11.36970882]
[1772115204439,1.66079307,87.987,87.954,0.37577]
[1772115205746,1.66079307,87.985,87.955,11.36945028]
[1772115206442,1.70528374,87.979,87.95,0.2]
[1772115207364,11.3654445,87.986,87.951,0.37961344]
[1772115207525,1.70528374,87.985,87.951,0.37961344]
[1772115208052,13.07098659,87.984,87.953,0.38054687]
[1772115208225,13.07098659,87.984,87.95,0.2]
[1772115208226,1.70528374,87.979,87.95,0.2]
[1772115208548,39.77995998,87.984,87.952,0.38054687]
[1772115208854,11.36570285,87.984,87.952,0.38054687]
[1772115209229,13.07098659,87.984,87.952,0.38054687]
[1772115209444,1.70528374,87.969,87.94,0.2]
[1772115209630,1.70528374,87.969,87.94,3.76889032]
[1772115210339,11.36777009,87.968,87.94,3.76889032]
[1772115210546,13.07305383,87.968,87.94,3.76889032]
[1772115210843,1.70528374,87.967,87.94,3.76889032]
[1772115211658,1.70528374,87.979,87.941,0.38328333]
[1772115211856,1.70528374,87.975,87.94,3.76889032]
[1772115212327,1.70528374,87.973,87.941,11.37126027]
[1772115212720,1.70528374,87.973,87.941,11.75543487]
[1772115212925,1.70528374,87.973,87.95,3.56889032]
[1772115213127,1.70528374,87.973,87.941,40.18358556]
[1772115213128,1.70528374,87.999,87.961,0.38505565]
[1772115213328,39.77317923,87.999,87.97,3.56889032]
[1772115213544,1.70528374,87.998,87.961,0.38505565]
[1772115213856,1.70528374,87.989,87.95,3.95394597]
[1772115214057,1.70528374,87.989,87.941,39.79941096]
[1772115214058,11.36376549,87.999,87.97,3.56889032]
[1772115214246,1.70528374,88.006,87.981,0.38592657]
[1772115214447,1.70528374,88.006,87.98,3.56889032]
[1772115214839,39.76414183,88.019,87.971,11.36738243]
[1772115214840,1.70528374,88.018,87.99,3.56889032]
[1772115215560,1.70528374,88.018,87.98,3.56889032]
[1772115215765,1.70528374,88.009,87.971,11.36738243]
[1772115215936,1.70528374,88.009,87.98,3.56889032]
[1772115216355,1.70528374,88.007,87.98,3.56889032]
[1772115216964,1.70528374,88.007,87.981,11.3660904]
[1772115217168,1.70528374,88.007,87.98,3.56889032]
[1772115218460,1.70372965,88.005,87.972,11.36721073]
[1772115218961,1.70372965,88.005,87.98,3.56889032]
[1772115219140,3.56889032,88.02,87.981,0.390946]
[1772115219141,1.70372965,88.011,87.981,0.390946]
[1772115219454,1.70372965,88.029,88.001,0.390946]
[1772115219663,1.70372965,88.029,88.01,3.56889032]
[1772115220543,1.70372965,88.029,87.972,56.83626608]
[1772115220544,11.35794652,88.045,88.02,3.56889032]
[1772115220939,1.70372965,88.044,88.02,3.56889032]
[1772115221268,1.70372965,88.039,88.003,11.36321634]
[1772115221866,1.70372965,88.039,88.01,3.56889032]
[1772115222446,1.70372965,88.037,88.01,14.93122758]
[1772115223351,11.35697669,88.052,88.03,3.56889032]
[1772115223545,1.70372965,88.048,88.03,3.56889032]
[1772115224440,11.35697669,88.052,88.03,3.56889032]
[1772115224639,1.70372965,88.057,88.04,3.56889032]
[1772115224943,1.70372965,88.067,88.04,3.56889032]
[1772115225143,1.70372965,88.067,88.05,3.56889032]
[1772115226363,1.70372965,88.067,88.04,3.56889032]
[1772115226568,1.70372965,88.067,88.04,14.92728243]
[1772115227260,28.38445192,88.077,88.04,14.92728243]
[1772115227261,1.70372965,88.084,88.051,0.39711963]
[1772115227462,1.70372965,88.084,88.04,11.35839211]
[1772115227463,1.70372965,88.089,88.06,3.56889032]
[1772115227757,1.70372965,88.079,88.04,3.56889032]
[1772115227937,39.7322006,88.09,88.04,3.56889032]
[1772115227938,1.70372965,88.069,88.04,3.56889032]
[1772115228573,1.70372965,88.067,88.04,3.56889032]
[1772115229654,1.70372965,88.065,88.035,11.35900723]
[1772115231068,1.70372965,88.065,88.04,3.56889032]
[1772115231648,1.70372965,88.065,88.035,11.35900723]
[1772115231649,1.70372965,88.079,88.051,11.35705443]
[1772115231855,1.70372965,88.078,88.05,3.56889032]
[1772115232250,1.70372965,88.078,88.041,11.3583444]
[1772115232953,1.70372965,88.078,88.05,3.56889032]
[1772115233963,1.70372965,88.078,88.051,11.35705443]
[1772115234666,1.70372965,88.078,88.06,3.56889032]
[1772115235273,1.70372965,88.078,88.051,11.35705443]
[1772115235757,1.70372965,88.076,88.041,11.35824603]
[1772115235961,1.85428138,88.074,88.05,3.56889032]
[1772115236669,1.85428138,88.074,88.036,11.3589895]
[1772115236976,1.85428138,88.069,88.04,3.56889032]
[1772115238279,1.85428138,88.067,88.041,11.3583444]
[1772115239074,1.85428138,88.059,88.007,28.40652534]
[1772115239272,1.85428138,88.069,88.041,0.40601097]
[1772115239457,1.85428138,88.075,88.05,3.57158609]
[1772115240276,1.85428138,88.073,88.05,3.57158609]
[1772115240480,1.85428138,88.073,88.05,14.92870044]
[1772115241265,1.85428138,88.073,88.05,3.57158609]
[1772115241982,1.85428138,88.073,88.04,3.57158609]
[1772115242681,11.35434644,88.072,88.041,11.3583444]
[1772115242882,1.85428138,88.071,88.041,11.3583444]
[1772115243471,1.85428138,88.071,88.04,3.57158609]
[1772115243666,1.85428138,88.071,88.04,14.92997585]
[1772115245279,1.85428138,88.071,88.05,3.57158609]
[1772115246479,1.85428138,88.069,88.04,11.76866319]
[1772115246682,1.85428138,88.069,88.05,3.57158609]
[1772115247864,1.85428138,88.069,88.05,14.92869555]
[1772115248069,1.85428138,88.069,88.05,3.57158609]
[1772115248377,28.37962848,88.092,88.05,3.57158609]
[1772115248378,1.85428138,88.076,88.051,11.35705443]
[1772115248784,1.85428138,88.074,88.05,3.57158609]
[1772115249483,1.85428138,88.074,88.05,14.92868069]
[1772115249686,1.85428138,88.074,88.06,3.57158609]
[1772115249874,1.85428138,88.074,88.05,14.92868069]
[1772115250074,1.85428138,88.089,88.06,3.57158609]
[1772115252080,1.85428138,88.087,88.031,28.39908668]
[1772115252395,1.85428138,88.079,88.05,3.57158609]
[1772115253466,1.85428138,88.077,88.05,3.57158609]
[1772115254008,11.35357296,88.078,88.004,103.1]
[1772115254009,1.85428138,88.069,88.03,3.57158609]
[1772115254288,1.85428138,88.069,88.04,3.57158609]
[1772115256092,1.85428138,88.074,88.041,0.41579471]
[1772115256264,1.85428138,88.081,88.051,0.41579471]
[1772115256465,1.85428138,88.081,88.05,3.57158609]
[1772115256784,1.85428138,88.079,88.05,3.57158609]
[1772115257190,1.85428138,88.077,88.05,3.57158609]
[1772115257392,1.85428138,88.077,88.04,3.57158609]
[1772115257690,1.85428138,88.077,88.05,3.57158609]
[1772115258071,1.85428138,88.077,88.041,11.77465696]
[1772115259691,1.85428138,88.069,88.03,3.57158609]
[1772115260686,1.85428138,88.067,88.03,3.57158609]
[1772115260905,1.85428138,88.059,88.02,3.57158609]
[1772115261105,1.85428138,88.049,88.011,0.41832517]
[1772115261600,1.85428138,88.049,88.02,3.57158609]
[1772115263697,1.85428138,88.047,88.02,3.57158609]
[1772115264780,11.35769938,88.046,88.02,3.57158609]
[1772115265095,1.85428138,88.045,88.02,3.57158609]
[1772115266297,1.85428138,88.045,88.011,0.41832517]
[1772115266594,1.85428138,88.045,88.011,11.78335868]
[1772115266972,1.85428138,88.045,88.011,0.42117496]
[1772115267179,1.8420057,88.043,88.01,3.57158609]
[1772115267691,1.8420057,88.043,88.01,14.93388078]
[1772115268801,1.8420057,88.041,88.01,14.93388078]
[1772115270580,1.8420057,88.039,88.007,0.422968]
[1772115270782,1.8420057,88.039,88.01,3.57158609]
[1772115271695,1.8420057,88.039,88.007,0.422968]
[1772115272000,1.8420057,88.039,88.01,3.57158609]
[1772115272196,1.8420057,88.039,88.02,3.57158609]
[1772115274296,1.8420057,88.039,88.011,0.42468006]
[1772115274694,1.8420057,88.037,88.011,0.42468006]
[1772115274999,11.35873145,88.038,88.011,0.42468006]
[1772115276386,11.35873145,88.038,88.01,14.93393127]
[1772115276387,1.8420057,88.037,88.012,11.78759385]
[1772115276596,1.8420057,88.037,88.013,0.42550687]
[1772115279917,1.8420057,88.037,88.02,3.57158609]
[1772115282104,1.8420057,88.037,88.014,11.36182879]
[1772115282311,1.72904409,88.035,88.014,11.36182879]
[1772115282494,1.72904409,88.035,88.01,14.93384603]
[1772115282697,1.72904409,88.035,88.011,0.42825482]
[1772115283504,1.72904409,88.035,88.01,14.93384603]
[1772115284193,1.72904409,88.035,88.01,4.00058608]
[1772115284501,1.72904409,88.033,88.01,3.57158609]
[1772115285700,11.35924756,88.034,87.99,3.57158609]
[1772115285701,1.72904409,88.029,87.99,3.57158609]
[1772115285893,1.72904409,88.019,87.99,14.93642955]
[1772115286110,1.72904409,88.019,87.991,0.42972813]
[1772115286410,1.72904409,88.019,88.0,3.57158609]
[1772115287121,1.72904409,88.019,87.99,0.43008595]
[1772115287414,1.72904409,88.019,88.0,3.57158609]
[1772115288602,1.72904409,88.017,88.0,3.57158609]
[1772115291412,1.72904409,88.049,88.011,0.43147657]
[1772115291714,1.72904409,88.056,88.03,3.57158609]
[1772115293511,1.72904409,88.054,88.03,3.57158609]
[1772115294112,39.74788483,88.055,88.03,3.57158609]
[1772115294113,11.35653852,88.055,88.03,3.57158609]
[1772115294315,1.72904409,88.058,88.03,3.57158609]
[1772115295711,1.72904409,88.056,88.03,3.57158609]
[1772115298018,1.87320114,88.054,88.03,3.57158609]
[1772115299435,1.87320114,88.054,88.03,3.5717479]
[1772115300014,1.87320114,88.052,88.03,3.5717479]
[1772115300710,1.87320114,88.052,88.02,3.5717479]
[1772115300913,1.87320114,88.052,88.03,3.5717479]
[1772115301215,3.5717479,88.06,88.03,3.5717479]
[1772115301216,1.87320114,88.06,88.031,0.43498545]
[1772115301417,1.87320114,88.07,88.05,3.5717479]
[1772115302007,1.87320114,88.068,88.04,3.5717479]
[1772115302212,1.87320114,88.059,88.02,3.5717479]
[1772115303612,1.87320114,88.059,88.02,14.93269206]
[1772115304112,39.74653068,88.058,88.02,3.5717479]
[1772115304418,1.87320114,88.057,88.02,3.5717479]
[1772115305326,1.87320114,88.057,88.03,3.5717479]
[1772115305721,1.87320114,88.057,88.031,0.43615482]
[1772115305920,1.87320114,88.057,88.04,3.5717479]
[1772115306807,1.87320114,88.055,88.031,0.43615482]
[1772115307931,1.87320114,88.053,88.02,4.00846745]
[1772115308312,1.87320114,88.053,88.02,3.5717479]
[1772115308513,1.87320114,88.053,88.02,4.00874496]
[1772115309814,39.74923908,88.052,88.02,3.5717479]
[1772115310131,1.87320114,88.049,88.02,3.5717479]
[1772115310431,1.87320114,88.049,88.03,3.5717479]
[1772115310630,11.35692545,88.052,88.031,0.43754256]
[1772115310828,13.23012659,88.052,88.031,0.43754256]
[1772115311029,1.87320114,88.051,88.031,0.43754256]
[1772115312819,1.87320114,88.051,88.032,11.35950563]
[1772115313137,1.87320114,88.051,88.031,0.43754256]
[1772115314531,11.35718341,88.05,88.031,0.43754256]
[1772115314740,13.23038455,88.05,88.031,0.43754256]
[1772115315133,1.87320114,88.049,88.03,3.5717479]
[1772115315332,1.87320114,88.049,88.024,0.43885241]
[1772115315535,1.87320114,88.049,88.03,3.5717479]
[1772115316033,1.87320114,88.054,88.03,3.5717479]
[1772115318944,1.87320114,88.058,88.04,3.5717479]
[1772115319121,1.87320114,88.068,88.05,3.5717479]
[1772115321145,1.87320114,88.066,88.05,3.5717479]
[1772115322045,1.87320114,88.066,88.012,0.44056362]
[1772115322251,1.87320114,88.066,88.03,3.5717479]
[1772115323443,39.74337136,88.065,88.03,3.5717479]
[1772115323645,1.87320114,88.059,88.02,3.5717479]
[1772115324231,1.87320114,88.039,88.0,14.93533148]
[1772115324428,1.87320114,88.039,88.0,15.37635913]
[1772115324628,1.87320114,88.039,88.001,0.44102765]
[1772115324832,1.87320114,88.039,88.01,3.5717479]
[1772115325432,11.35873145,88.038,88.01,3.5717479]
[1772115325631,1.87320114,88.037,88.01,3.5717479]
[1772115326031,1.78933534,88.041,88.02,3.5717479]
[1772115326432,1.78933534,88.041,88.01,4.01345181]
[1772115327053,1.78933534,88.041,88.01,3.5717479]
[1772115327254,1.78933534,88.029,87.99,3.5717479]
[1772115327469,1.78933534,88.019,87.99,3.5717479]
[1772115327762,1.78933534,88.017,87.98,3.5717479]
[1772115329560,1.78933534,88.015,87.99,4.01410503]
[1772115329940,1.78933534,88.015,87.99,3.5717479]
[1772115330771,5.36086188,88.047,87.991,0.44256989]
[1772115331068,1.78933534,88.036,88.001,0.4427802]
[1772115331263,1.78933534,88.036,88.0,3.5717479]
[1772115331466,1.78933534,88.029,87.99,3.5717479]
[1772115331757,1.78933534,88.018,87.98,3.5717479]
[1772115334961,1.78933534,88.016,87.99,3.5717479]
[1772115336544,1.78933534,88.014,87.98,3.5717479]
[1772115337857,1.78933534,88.014,87.981,0.44418629]
[1772115338056,1.78933534,88.014,87.99,3.5717479]
[1772115340073,1.77520703,88.012,87.99,3.5717479]
[1772115340278,1.77520703,88.009,87.98,3.5717479]
[1772115340482,1.77520703,88.009,87.97,3.5717479]
[1772115340683,1.77520703,87.999,87.961,0.44475495]
[1772115340883,3.5717479,87.99,87.96,3.5717479]
[1772115341181,1.77520703,87.989,87.954,0.44475495]
[1772115341477,1.77520703,87.989,87.939,28.42856637]
[1772115341478,1.77520703,87.987,87.951,0.44494017]
[1772115341881,1.77520703,87.979,87.95,3.5717479]
[1772115342078,1.77520703,87.979,87.94,3.7717479]
[1772115342580,1.77520703,87.979,87.95,3.5717479]
[1772115342782,1.77520703,87.979,87.94,3.7717479]
[1772115343184,1.77520703,87.979,87.919,28.43502668]
[1772115343185,1.77520703,87.949,87.91,3.5717479]
[1772115343367,1.77520703,87.949,87.91,4.01705214]
[1772115343566,1.77520703,87.949,87.911,0.44530424]
[1772115344482,1.77520703,87.947,87.921,0.44548315]
[1772115346685,1.77520703,87.945,87.91,3.5717479]
[1772115347604,1.77520703,87.945,87.91,4.01775553]
[1772115348185,1.77520703,87.945,87.907,11.37557831]
[1772115348186,1.77520703,87.945,87.92,3.5717479]
[1772115348501,11.36953894,87.955,87.931,0.44617846]
[1772115348684,13.14474597,87.955,87.931,0.44617846]
[1772115348887,1.77520703,87.954,87.93,3.5717479]
[1772115349088,1.77520703,87.954,87.924,0.44617846]
[1772115350203,1.77520703,87.954,87.93,3.5717479]
[1772115351103,1.77520703,87.961,87.94,3.5717479]
[1772115351406,1.77520703,87.961,87.931,11.37255347]
[1772115352103,11.36764087,87.969,87.941,0.44684237]
[1772115352304,1.77520703,87.968,87.95,3.5717479]
[1772115352506,1.77520703,87.968,87.941,0.44684237]
[1772115352800,1.77520703,87.968,87.94,3.5717479]
[1772115353506,1.77520703,87.966,87.94,3.5717479]
[1772115355605,1.77520703,87.964,87.94,3.5717479]
[1772115356185,3.5717479,87.96,87.93,3.5717479]
[1772115356391,1.70436917,87.959,87.93,3.5717479]
[1772115357182,1.70436917,87.959,87.92,3.5717479]
[1772115357690,1.70436917,87.959,87.93,3.5717479]
[1772115359008,1.70436917,87.957,87.92,3.5717479]
[1772115359209,1.70436917,87.957,87.921,0.44808161]
[1772115359509,3.5717479,87.98,87.941,0.64808161]
[1772115359897,28.41670712,87.977,87.941,0.64808161]
[1772115360298,28.41670712,87.977,87.95,3.5717479]
[1772115360502,11.36182879,88.014,87.971,0.64822862]
[1772115360700,11.36182879,88.014,87.99,3.5717479]
[1772115360899,3.5717479,88.03,87.99,3.5717479]
[1772115360900,39.75962466,88.029,87.99,3.5717479]
[1772115361194,3.5717479,88.01,87.97,3.5717479]
[1772115361397,85.19919571,88.029,87.96,3.57662769]
[1772115361398,1.70436917,87.999,87.96,3.57662769]
[1772115361605,1.70436917,87.989,87.95,3.57662769]
[1772115361802,1.70436917,87.989,87.96,3.57662769]
[1772115362117,1.70436917,88.009,87.98,3.57662769]
[1772115363021,1.70436917,88.007,87.98,3.57662769]
[1772115364607,1.70436917,88.007,87.97,3.57662769]
[1772115365021,1.70436917,88.005,87.97,3.57662769]
[1772115365613,1.70436917,88.005,87.98,3.57662769]
[1772115365811,1.70436917,88.005,87.99,3.57662769]
[1772115366009,1.70436917,88.005,87.98,3.57662769]
[1772115366712,11.36311985,88.004,87.98,3.57662769]
[1772115367118,13.06748902,88.004,87.98,3.57662769]
[1772115367516,1.70436917,88.003,87.98,3.57662769]
[1772115368918,1.70436917,88.001,87.97,3.57662769]
[1772115369118,1.70436917,88.001,87.98,3.57662769]
[1772115369428,1.70436917,88.001,87.97,3.57662769]
[1772115370111,11.3633781,88.002,87.98,3.57662769]
[1772115370313,11.36288707,88.006,87.99,3.57662769]
[1772115371024,1.70436917,88.005,87.97,3.57662769]
[1772115373013,1.70436917,88.003,87.97,3.57662769]
[1772115375530,1.70436917,88.001,87.97,3.57662769]
[1772115376911,1.70436917,87.999,87.97,3.57662769]
[1772115377318,1.70436917,87.999,87.964,0.64847931]
[1772115377519,1.70436917,87.999,87.97,3.57662769]
[1772115380334,1.70436917,87.997,87.97,3.57662769]
[1772115381427,1.70436917,87.997,87.97,4.22490361]
[1772115382730,1.70436917,87.995,87.97,4.22490361]
[1772115383335,11.36415291,87.996,87.971,0.64822077]
[1772115383913,11.36415291,87.996,87.98,3.57662769]
[1772115384634,1.70436917,87.995,87.971,0.64822077]
[1772115385327,1.70436917,87.995,87.97,3.57662769]
[1772115385328,1.70436917,87.993,87.97,3.57662769]
[1772115385509,1.70436917,87.979,87.933,0.64816687]
[1772115385713,1.70436917,87.979,87.951,0.64816687]
[1772115386838,1.70436917,87.979,87.923,39.80749574]
[1772115386839,1.7554609,87.977,87.936,0.64811421]
[1772115387019,1.7554609,87.977,87.94,3.57662769]
[1772115387739,1.7554609,87.969,87.936,0.64811421]
[1772115388040,1.7554609,87.959,87.92,3.57662769]
[1772115388813,3.57662769,87.95,87.92,3.57662769]
[1772115389018,1.7554609,87.949,87.92,3.57662769]
[1772115389842,1.7554609,87.949,87.91,3.57662769]
[1772115390221,1.7554609,87.949,87.92,3.57662769]
[1772115390423,1.7554609,87.956,87.921,0.64801246]
[1772115390838,1.7554609,87.954,87.93,3.57662769]
[1772115391041,1.7554609,87.979,87.941,0.64798775]
[1772115391226,1.7554609,87.979,87.95,3.57662769]
[1772115391425,1.7554609,87.979,87.94,3.57662769]
[1772115392542,1.7554609,87.969,87.93,3.57662769]
[1772115392726,1.7554609,87.967,87.93,3.57662769]
[1772115393427,1.7554609,87.959,87.92,3.57662769]
[1772115393942,1.7554609,87.949,87.91,3.57662769]
[1772115394333,1.7554609,87.939,87.901,0.64791531]
[1772115394535,1.7554609,87.939,87.91,3.57662769]
[1772115394738,1.7554609,87.937,87.91,3.57662769]
[1772115394927,1.7554609,87.937,87.9,3.57662769]
[1772115395134,1.7554609,87.929,87.892,0.64789171]
[1772115395342,1.7554609,87.929,87.89,3.57662769]
[1772115395843,1.7554609,87.919,87.88,3.57662769]
[1772115396047,1.7554609,87.899,87.87,3.77662769]
[1772115396226,1.7554609,87.899,87.87,0.2]
[1772115396831,1.7554609,87.897,87.87,0.2]
[1772115397230,11.37682313,87.898,87.88,9.60092267]
[1772115397448,1.88471573,87.896,87.87,0.2]
[1772115398131,9.60092267,87.89,87.87,0.2]
[1772115398332,1.78471573,87.889,87.85,9.80092267]
[1772115399047,1.78471573,87.887,87.85,9.80092267]
[1772115399645,11.37754424,87.893,87.87,9.80085508]
[1772115399833,11.37754424,87.893,87.871,0.19993241]
[1772115400032,1.78471573,87.897,87.88,9.60092267]
[1772115400449,1.78471573,87.905,87.89,9.60092267]